{"text_format":"1","workbook":"xlsx","n_sheets":3,"sheets":["Relación de gastos","Relación de ingresos ","Gastos e ingresos"],"not_rendered":{"charts":0,"images":3,"macros":1,"external_links":0,"defined_names":8,"comments":3,"pivot_tables":0},"unopened":[],"bounds":{"document_bytes":16777216,"sheet_cells":100000,"rows_first":2000,"rows_last":500,"rows_between":2000,"halvings":0,"cell_chars":16384,"cell_head_chars":4096},"cells_cut":0,"cells_raw":0,"read":"whole","date_system":"1900"}

{"sheet":"Relación de gastos","index":0,"n_rows":88,"n_cols":10,"rows_kept":88,"cut":false,"hidden":false,"merged":[[87,0,87,10],[48,0,48,2],[48,3,48,6],[48,9,48,10],[75,0,75,10],[76,0,76,10],[77,0,77,10],[78,0,78,10],[79,0,79,10],[80,0,80,10],[81,0,81,10],[82,0,82,10],[83,0,83,10],[71,0,71,10],[55,3,55,6],[55,9,55,10],[63,0,63,5],[54,9,54,10],[56,0,56,10],[57,0,57,10],[58,9,58,10],[61,9,61,10],[39,9,39,10],[86,0,86,10],[84,0,84,10],[85,0,85,10],[66,0,66,10],[68,0,68,10],[70,0,70,10],[69,0,69,10],[50,0,50,10],[47,9,47,10],[55,0,55,2],[62,0,62,2],[62,3,62,6],[62,9,62,10],[63,9,63,10],[51,9,51,10],[45,9,45,10],[46,9,46,10],[41,9,41,10],[42,0,42,10],[0,0,0,10],[4,0,4,1],[2,2,2,3],[3,2,3,3],[4,2,4,3],[2,0,2,1],[2,4,2,6],[3,4,3,6],[4,4,4,6],[2,7,2,8],[3,7,3,8],[4,7,4,8],[3,0,3,1],[8,9,8,10],[7,9,7,10],[22,0,22,2],[22,3,22,6],[22,9,22,10],[16,0,16,10],[17,9,17,10],[7,3,7,4],[15,9,15,10],[15,0,15,6],[11,9,11,10],[12,9,12,10],[13,9,13,10],[10,0,10,10],[14,9,14,10],[21,9,21,10],[18,9,18,10],[19,9,19,10],[20,9,20,10],[21,0,21,6],[9,0,9,10],[7,1,8,1],[7,0,8,0],[6,0,6,4],[7,2,8,2],[35,0,35,6],[47,0,47,6],[49,0,49,10],[36,0,36,10],[37,9,37,10],[38,9,38,10],[30,0,30,10],[31,9,31,10],[35,9,35,10],[32,9,32,10],[29,0,29,6],[29,9,29,10],[24,0,24,10],[25,9,25,10],[23,0,23,10],[28,9,28,10],[33,9,33,10],[34,9,34,10],[40,9,40,10],[41,0,41,6],[43,9,43,10],[44,9,44,10]]}
["Relación clasificada de todos los gastos realizados para la ejecución de la actividad subvencionada"]
[]
["Persona física/jurídica beneficiaria:         ",null,null,null,"Importe del coste total del proyecto:",null,null,null,null,"euros"]
["Código de subvención:",null,null,null,"Importe de la subvención otorgada:",null,null,null,null,"euros"]
["Nombre del proyecto subvencionado:",null,null,null,"Periodo de ejecución del proyecto subvencionado:",null,null,null,null,"a"]
[]
["Gastos del proyecto/actividad/servicio subvencionado (*)"]
["Núm. De orden (0)","Número de documento: justificantes gasto personal(1), factura o recibo/ticket(2)","Concepto de la factura /\ndocumento probatorio equivalente","Emisor/a de la factura",null,"Fecha de emisión","Importe total de la factura","Importe imputable (dedicado) al proyecto (3)","Importe imputable a la subvención municipal (4)","Observaciones"]
[null,null,null,"NIF","Nombre","dd/mm/aaaa","euros","euros","euros"]
["ACTIVIDAD A. Fase de redacción de Proyecto de Obras de nueva construcción o rehabilitación integral o la fase de dirección de las obras por parte de Arquitecto y Arquitecto Técnico (máximo 80% subvención)"]
["A.D1 Honorarios de arquitecto en la fase de proyecto y/o dirección"]
[]
[]
[]
[]
["Subtotal A.D1",null,null,null,null,null,null,{"$f":"SUM(H12:H15)","v":0},{"$f":"SUM(I12:I15)","v":0}]
["A.D2 Honorarios de arquitecto en la fase de dirección"]
[]
[]
[]
[]
["Subtotal A.D2",null,null,null,null,null,null,{"$f":"SUM(H18:H21)","v":0},{"$f":"SUM(I18:I21)","v":0}]
["TOTAL GASTOS ACTIVIDAD A",null,null,"TOTAL GASTOS ACTIVIDAD A",null,null,null,{"$f":"+H16+H22","v":0},{"$f":"+I16+I22","v":0},{"$f":"IF(I23<=$H$4*0.8,\"\",\"Error: Actividad A no puede superar el 80% de la subvención\")","v":""}]
["ACTIVIDAD B. Fase de redacción del Convenio para la prestación de servicios e instalaciones para los socios y vecinos en su caso (máximo 10% subvención)"]
["B.D1 Honorarios de arquitecto por definición de los espacios comunes para las actividades colaborativas siempre y cuando no estén totalmente definidos en el Proyecto Ejecutivo"]
[]
[]
[]
[]
["Subtotal B.D1",null,null,null,null,null,null,{"$f":"SUM(H26:H29)","v":0},{"$f":"SUM(I26:I29)","v":0}]
["B.D2 Honorarios de técnico agrícola o jardinero por el proyecto de huerto y/o jardín comunitario. O honorarios de la gestora por el mismo concepto"]
[]
[]
[]
[]
["Subtotal B.D2",null,null,null,null,null,null,{"$f":"SUM(H32:H35)","v":0},{"$f":"SUM(I32:I35)","v":0}]
["B.D3 Honorarios de economista para la cuenta de explotación de construcción y/o implementación y la de explotación. O honorarios de la gestora por el mismo concepto"]
[]
[]
[]
[]
["Subtotal B.D3",null,null,null,null,null,null,{"$f":"SUM(H38:H41)","v":0},{"$f":"SUM(I38:I41)","v":0}]
["B.D4 Honorarios de ingeniero de organización o técnico especialista en organización y explotación de espacios e instalaciones comunes, servicios compartidos y aplicaciones informáticas para el uso de los socios y vecinos en su caso. O honorarios de la gestora por el mismo concepto"]
[]
[]
[]
[]
["Subtotal B.D4",null,null,null,null,null,null,{"$f":"SUM(H44:H47)","v":0},{"$f":"SUM(I44:I47)","v":0}]
["TOTAL GASTOS ACTIVIDAD B",null,null,"TOTAL DESPESES ACTIVITAT B",null,null,null,{"$f":"H30+H36+H42+H48","v":0},{"$f":"+I30+I36+I42+I48","v":0},{"$f":"IF(I49<=H4*0.1,\"\",\"Error: Actividad B no puede superar el 10% de la subvención\")","v":""}]
["ACTIVIDAD C. Tareas de fortalecimiento, cohesión, dinamización, resolución de conflictos y participación de las personas socias tanto en el planteamiento del proyecto de construcción, como en el proyecto colaborativo y en la propia dinámica de la cooperativa, (máximo 10% subvención)"]
["C.D1 Honorarios de personas o entidades relacionadas con la dinamización, mediación y participación de grupos, o de la propia gestora por estos conceptos"]
[]
[]
[]
[]
["TOTAL GASTOS ACTIVIDAD C",null,null,"TOTAL GASTOS ACTIVIDAD C",null,null,null,{"$f":"SUM(H52:H55)","v":0},{"$f":"SUM(I52:I55)","v":0},{"$f":"IF(I56<=H4*0.1,\"\",\"Error: Actividad C no puede superar el 10% de la subvención\")","v":""}]
["AUDITORIA. Para las subvenciones otorgadas por importe igual o superior a 20.000 € es obligatorio un informe de auditoria para la justificación."]
["D.D1 Gastos del informe de auditoria (máximo 1.500€ subvención)"]
[]
[]
[]
[]
["TOTAL GASTOS AUDITORIA",null,null,"TOTAL GASTOS AUDITORIA",null,null,null,{"$f":"SUM(H59:H62)","v":0},{"$f":"SUM(I59:I62)","v":0},{"$f":"IF(I63<=1500,\"\",\"Error: Gastos de auditoria no puede superar los 1500 € de subvención\")","v":""}]
["TOTAL GASTOS",null,null,null,null,null,"TOTAL",{"$f":"H23+H49+H56+H63","v":0},{"$f":"I23+I49+I56+I63","v":0}]
[]
["Notas:"]
["(*) Se deben relacionar todos los gastos del proyecto/actividad/servicio subvencionado. En caso de que el número de filas de cada concepto sea insuficiente puede insertar líneas dentro del mismo concepto seleccionando una celda verde y haciendo clic sobre el botón de insertar línea."]
["(0) El número de orden debe ser correlativo empezando por D.1.1, D1.2, D.1.3, D2.4, etc."]
["(1) Respecto a los gastos de recursos humanos, puede ser subvencionable el coste total salarial mensual, que corresponde a la suma de la retribución bruta que aparece en la nómina del trabajador/a más la cuota de la empresa a la Seg. Social. Los gastos de personal se justifican con la nómina del trabajador/a acompañada de los correspondientes RLC y RNT (anteriores TC1 y TC2) de la TGSS y el modelo 111 del IRPF."]
["(2) En caso de que el documento justificativo del resto de gastos, no sea una factura, sino otro documento probatorio equivalente, como un recibo o justificante (como por dietas o transporte público), indíquelo en la columna \"observaciones\" \""]
["(3) En caso de que un justificante incluya conceptos que no tienen relación con el proyecto/actividad/servicio para el que se ha otorgado la subvención, aquí sólo tiene que indicarse la parte que realmente se ha dedicado al proyecto ."]
["(4) En esta columna debe indicarse el importe total o parcial de la factura que se imputa a la subvención recibida del Ayuntamiento de Barcelona. El total imputado, en esta columna, debe ser igual al importe de la subvención recibida."]
[]
["Pulsa el icono para generar un documento PDF del libro"]
[]
["Ámbito C SECTORES ESTRATÉGICOS: Cooperativismo de Vivienda en cesión de uso"]
["1. El importe de la subvención siempre será máximo del 80% de los gastos mencionados dado que el 20% debe ser sufragado por la cooperativa."]
["2. El importe máximo de subvención para esta modalidad C. SECTORES ESTRATÉGICOS: Cooperativismo de vivienda en cesión de uso es 50.000 €."]
["3. En caso de que la solicitud presentada sobrepase el importe máximo, se considerará como importe solicitado el máximo de lo establecido en la convocatoria."]
["4. Las actividades objeto de la subvención mediante los gastos mencionados en los puntos anteriores deben ser devengadas en los calendarios de ejecución y justificación que prevé la presente convocatoria de subvenciones y las facturas de gastos, su vencimiento y pago también."]
["5. Por las subvenciones otorgadas por importe igual o superior a 20.000 € es obligatorio un informe de auditoría para la justificación. El importe de este informe se considera gasto subvencionable y elegible, con un límite máximo de 1.500€."]
["6. Cuando se tenga que realizar gastos de más de 12.000 €, sin IVA, en el caso de prestaciones de servicios o entrega de bienes y por aquellos gastos de más de 30.000 €, sin IVA, en el caso de ejecución de obras, se tendrán que incorporar tres presupuestos solicitados y argumentar el motivo de la adjudicación en caso de no ser la propuesta más ventajosa económicamente."]
["7. La retribución de las personas contratadas en el marco del proyecto subvencionado no puede ser inferior al Salario Mínimo Interprofesional (SMI), ni a la estipulada en el correspondiente convenio o marco normativo de referencia (punto 7 de las bases 2023: requisitos de los proyectos )."]
["8. Los proyectos subvencionados deben fomentar actividades de interés público o social, las cuales deben ser gratuitas para las personas participantes o en ningún caso el precio debe suponer un obstáculo para su participación, buscando otras formas de acceso personas con dificultades económicas. En caso de que haya algún tipo de lucro, deberá revertir en las propias actividades subvencionadas."]
["9. El Ayuntamiento de Barcelona y sus entidades municipales en ningún caso subvencionarán el mismo proyecto, ejecutado durante el mismo período, por ningún otro procedimiento de concesión que no sea el regulado por las bases reguladoras."]
["10. El/la beneficiario/a no podrá alterar en ningún caso el destino de las subvenciones concedidas."]
["11. La organización designada como representante de la agrupación será plenamente responsable del proyecto ante el Ayuntamiento respecto al cumplimiento de las obligaciones establecidas en las bases reguladoras, sin perjuicio de la responsabilidad de las demás organizaciones socias de la agrupación, todo siéndole de aplicación los requisitos previstos en el punto 6.1 de las bases reguladoras."]
["12. En ningún caso podrán formar parte de la agrupación las organizaciones que hayan recibido otras subvenciones para la ejecución del propio proyecto de otras administraciones públicas."]

{"sheet":"Relación de ingresos ","index":1,"n_rows":72,"n_cols":10,"rows_kept":72,"cut":false,"hidden":false,"merged":[[66,0,66,3],[65,0,65,3],[65,6,65,9],[64,6,64,9],[59,6,59,9],[66,6,66,9],[60,6,60,9],[61,6,61,9],[62,6,62,9],[63,6,63,9],[56,0,56,3],[50,0,50,3],[53,6,53,9],[52,6,52,9],[56,6,56,9],[50,6,50,9],[0,0,0,9],[9,0,9,9],[15,0,15,9],[7,6,8,9],[10,6,10,9],[7,0,8,0],[11,6,11,9],[13,6,13,9],[3,2,3,3],[2,2,2,3],[6,0,6,3],[4,2,4,3],[7,2,7,3],[7,1,8,1],[14,0,14,3],[44,0,44,3],[38,0,38,3],[32,0,32,3],[14,6,14,9],[20,6,20,9],[28,6,28,9],[38,6,38,9],[37,6,37,9],[32,6,32,9],[31,6,31,9],[26,0,26,3],[20,0,20,3],[36,6,36,9],[34,6,34,9],[24,6,24,9],[29,6,29,9],[58,6,58,9],[16,6,16,9],[22,6,22,9],[26,6,26,9],[25,6,25,9],[41,6,41,9],[40,6,40,9],[30,6,30,9],[48,6,48,9],[44,6,44,9],[43,6,43,9],[42,6,42,9],[49,6,49,9],[23,6,23,9],[19,6,19,9],[18,6,18,9],[17,6,17,9],[47,6,47,9],[46,6,46,9]]}
["Detalle de todos los ingresos obtenidos y aportaciones del propio beneficiario para la ejecución de la actividad subvencionada"]
[]
[null,"Nombre de la persona física/jurídica beneficiaria:      ",{"$f":"IF('Relación de gastos'!C3:D3<>\"\",'Relación de gastos'!C3:D3,\"\")","v":""},null,"Importe del coste total del proyecto:",null,null,{"$f":"IF(+'Relación de gastos'!H3=\"\",\"\",+'Relación de gastos'!H3)","v":""},"euros"]
[null,"Código de subvención",{"$f":"IF('Relación de gastos'!C4:D4<>\"\",'Relación de gastos'!C4:D4,\"\")","v":""},null,"Importe de la subvención otorgada:",null,null,{"$f":"IF(+'Relación de gastos'!H4=\"\",\"\",+'Relación de gastos'!H4)","v":""},"euros"]
[null,"Nombre del proyecto subvencionado",{"$f":"IF('Relación de gastos'!C5:D5<>\"\",'Relación de gastos'!C5:D5,\"\")","v":""},null,"Periodo de ejecución del proyecto subvencionado:",null,null,{"$f":"IF(+'Relación de gastos'!H5=\"\",\"\",+'Relación de gastos'!H5)","v":""},"a",{"$f":"IF(+'Relación de gastos'!K5=\"\",\"\",+'Relación de gastos'!K5)","v":""}]
[]
["Ingresos del proyecto/actividad/servicio subvencionado"]
["núm. De orden (0)","Concepto del ingreso","Emisor/a del ingreso",null,"Fecha de cobro\n(dd/mm/aaaa)","Importe","Observaciones"]
[null,null,"NIF","Nombre","(1)","euros"]
["A. Subvención municipal "]
[]
[]
[]
[]
[null,null,null,null,"Subtotal A",{"$f":"SUM(F11:F14)","v":0}]
["B. Subvenciones de otras administraciones"]
[]
[]
[]
[]
[null,null,null,null,"Subtotal B",{"$f":"SUM(F17:F20)","v":0}]
["C. Subvenciones de entes privados"]
[]
[]
[]
[]
[null,null,null,null,"Subtotal C",{"$f":"SUM(F23:F26)","v":0}]
["D. Recursos propios de la organización aplicados al proyecto"]
[]
[]
[]
[]
[null,null,null,null,"Subtotal D",{"$f":"SUM(F29:F32)","v":0}]
["E. Taquillaje"]
[]
[]
[]
[]
[null,null,null,null,"Subtotal E",{"$f":"SUM(F35:F38)","v":0}]
["F. Cuotas de inscripción"]
[]
[]
[]
[]
[null,null,null,null,"Subtotal F",{"$f":"SUM(F41:F44)","v":0}]
["G. Venta de Productos"]
[]
[]
[]
[]
[null,null,null,null,"Subtotal G",{"$f":"SUM(F47:F50)","v":0}]
["H. Publicidad y/o Esponsorización"]
[]
[]
[]
[]
[null,null,null,null,"Subtotal H",{"$f":"SUM(F53:F56)","v":0}]
["I. Otros ingresos"]
[]
[]
[]
[]
[]
[]
[]
[null,null,null,null,"Subtotal I",{"$f":"SUM(F59:F65)","v":0}]
["Total INGRESOS",null,null,null,"TOTAL",{"$f":"+F15+F21+F27+F33+F39+F45+F51+F57+F66","v":0}]
[]
[]
[null,"Nota:"]
[null,"(0) El número de orden debe ser correlativo empezando por el número A1, A2, A3, B4, etc."]
[null,"(1) En caso de que el ingreso esté pendiente cobro, indicar \"P. Cobro\""]

{"sheet":"Gastos e ingresos","index":2,"n_rows":69,"n_cols":11,"rows_kept":69,"cut":false,"hidden":false,"merged":[[10,0,11,1],[24,6,24,7],[25,6,25,7],[25,8,25,9],[17,2,18,2],[17,3,18,3],[10,8,11,8],[10,9,11,9],[10,2,11,2],[10,3,11,3],[10,6,11,7],[14,1,16,1],[14,2,16,2],[14,3,16,3],[14,4,16,4],[4,5,4,6],[5,0,5,1],[5,2,5,3],[5,5,5,6],[9,6,9,7],[6,0,6,1],[6,2,6,3],[9,0,9,1],[4,0,4,1],[4,2,4,3],[40,0,40,10],[34,0,34,10],[35,0,35,10],[36,0,36,10],[37,0,37,10],[38,0,38,10],[17,0,18,1],[39,0,39,10],[28,5,28,8],[29,7,29,8],[24,0,24,1],[27,0,27,1]]}
[]
[]
["Estado de los gastos realizados y de los ingresos obtenidos para la ejecución de la actividad subvencionada (*)"]
[]
["Nombre de la persona física/jurídica beneficiaria:  ",null,{"$f":"IF('Relación de gastos'!C3:D3<>\"\",'Relación de gastos'!C3:D3,\"\")","v":""},null,null,"Importe del coste total del proyecto:",null,{"$f":"'Relación de ingresos '!H3","v":""},"euros"]
["Código de subvención:",null,{"$f":"IF('Relación de gastos'!C4:D4<>\"\",'Relación de gastos'!C4:D4,\"\")","v":""},null,null,"Importe de la subvención otorgada:",null,{"$f":"'Relación de ingresos '!H4","v":""},"euros"]
["Nombre del proyecto subvencionado:",null,{"$f":"IF('Relación de gastos'!C5:D5<>\"\",'Relación de gastos'!C5:D5,\"\")","v":""},null,null,"Periodo de ejecución del proyecto subvencionado:",null,null,{"$f":"'Relación de ingresos '!H5","v":""},"a",{"$f":"'Relación de ingresos '!J5","v":""}]
[]
["SUBVENCIONES PARA EL FORTALECIMIENTO DE LA ECONOMÍA SOCIAL Y SOLIDARIA Y LA INTERCOOPERACIÓN 2023"]
["GASTOS PREVISTOS",null,"importe en euros",null,"importe en euros",null,"INGRESOS PREVISTOS",null,"importe en euros"]
["Gastos Actividad A (máximo 80% subvención)",null,"Previsión inicial o reformulada ya aprobada (1)","Gastos realizados (2)","Diferencia\n",null,"Ingresos previstos",null,"Previsión inicial (1)","Ingresos obtenidos (3)"]
[null,null,null,null,"(2-1)"]
[null,"A.D1  Honorarios de arquitecto en la fase de proyecto y/o dirección",null,{"$f":"'Relación de gastos'!H16","v":0},{"$f":"+C13-D13","v":0},null,"A.","Subvención municipal (importe solicitado a la instancia/otorgado)",null,{"$f":"'Relación de ingresos '!F15","v":0}]
[null,"AD.2 Honorarios de arquitecto en la fase de dirección",null,{"$f":"'Relación de gastos'!H22","v":0},{"$f":"+C14-D14","v":0},null,"B.","Subvenciones de otras administraciones",null,{"$f":"'Relación de ingresos '!F21","v":0}]
[null,"Total Gastos Actividad A  ",{"$f":"SUM(C13:C14)","v":0},{"$f":"SUM(D13:D14)","v":0},{"$f":"SUM(E13:E14)","v":0},null,"C.","Subvenciones de entes privados",null,{"$f":"'Relación de ingresos '!F27","v":0}]
[null,null,null,null,null,null,"D.","Recursos propios de la organización aplicados al proyecto",null,{"$f":"'Relación de ingresos '!F33","v":0}]
[null,null,null,null,null,null,"E.","Taquillaje",null,{"$f":"'Relación de ingresos '!F39","v":0}]
["Gastos Actividad B (máximo 10% subvención)",null,"Previsión inicial o reformulada ya aprobada (1)","Gastos realizados (2)","Diferencia\n",null,"F.","Cuotas de inscripción",null,{"$f":"'Relación de ingresos '!F45","v":0}]
[null,null,null,null,"(2-1)",null,"G.","Venta de Productos",null,{"$f":"'Relación de ingresos '!F51","v":0}]
[null,"B.D1 Honorarios de arquitecto por definición de los espacios comunes para las actividades colaborativas siempre y cuando no estén totalmente definidos en el Proyecto Ejecutivo",null,{"$f":"'Relación de gastos'!H30","v":0},{"$f":"+C20-D20","v":0},null,"H","Publicidad y/o Esponsorización",null,{"$f":"'Relación de ingresos '!F57","v":0}]
[null,"B.D2 Honorarios de técnico agrícola o jardinero por el proyecto de huerto y/o jardín comunitario. O honorarios de la gestora por el mismo concepto",null,{"$f":"'Relación de gastos'!H36","v":0},{"$f":"+C21-D21","v":0},null,"I.","Otros ingresos",null,{"$f":"'Relación de ingresos '!F66","v":0}]
[null,"B.D3 Honorarios de economista para la cuenta de explotación de construcción y/o implementación y la de explotación. O honorarios de la gestora por el mismo concepto",null,{"$f":"'Relación de gastos'!H42","v":0},{"$f":"+C22-D22","v":0},null,null,"Total Ingresos",{"$f":"SUM(I13:I21)","v":0},{"$f":"SUM(J13:J21)","v":0}]
[null,"B.D4 Honorarios de ingeniero de organización o técnico especialista en organización y explotación de espacios e instalaciones comunes, servicios compartidos y aplicaciones informáticas para el uso de los socios y vecinos en su caso. O honorarios de la gestora por el mismo concepto",null,{"$f":"'Relación de gastos'!H48","v":0},0]
[null,"Total Gastos Actividad B",{"$f":"SUM(C20:C23)","v":0},{"$f":"SUM(D20:D23)","v":0},{"$f":"SUM(E20:E23)","v":0}]
["Gastos Actividad C (máximo 10% subvención)",null,"Previsión inicial o reformulada ya aprobada (1)","Gastos realizados (2)","Diferencia\n(2-1)",null,"Ingresos menos gastos ",null,{"$f":"+I22-C31","v":0},{"$f":"+J22-D31","v":0}]
[null,"C.D1 Honorarios de personas o entidades relacionadas con la dinamización, mediación y participación de grupos, o de la propia gestora por estos conceptos",null,{"$f":"'Relación de gastos'!H56","v":0},0,null,"Desviación de Gastos (4)",null,"Desviación de ingresos (4)"]
[null,"Total Gastos Actividad C",{"$f":"SUM(C26:C26)","v":0},{"$f":"SUM(D26:D26)","v":0},0,null,"Importe"," % ","Importe","%"]
["Gastos Auditoria (máximo 1.500,00€ subvención)",null,"Previsión inicial o reformulada ya aprobada (1)","Gastos realizados (2)","Diferencia\n(2-1)",null,{"$f":"D31-C31","v":0},{"$f":"D31/C31","v":{"$error":"#DIV/0!"}},{"$f":"J22-I22","v":0},{"$f":"J22/I22","v":{"$error":"#DIV/0!"}}]
[null,"D.D1 Gastos del informe de auditoria (máximo 1.500€ subvención)",null,{"$f":"'Relación de gastos'!H63","v":0},{"$f":"+C29-D29","v":0},"% subvencionado inicialmente o después de reformulación (5)",null,null,null,{"$f":"I13/I22","v":{"$error":"#DIV/0!"}}]
[null,"Total Gastos Auditoria",{"$f":"SUM(C29:C29)","v":0},{"$f":"SUM(D29:D29)","v":0},0,null,null,"% subvencionado después de justificación (6)",null,{"$f":"+J13/J22","v":{"$error":"#DIV/0!"}}]
[null,"Total Gastos ",{"$f":"C15+C24+C27+C30","v":0},{"$f":"D15+D24+D27+D30","v":0},{"$f":"E15+E24+E27+E30","v":0}]
[]
[]
["Notas:"]
["(*) Las columnas sombreadas en color se irán rellenando automáticamente a partir de los datos introducidos en los documentos de gastos -detalle e ingresos-detalle. Por tanto, no imprima esta hoja hasta haber rellenado los demás."]
["(1) Previsión inicial o reformulación ya aprobada = Se debe indicar la previsión inicial de gastos y de ingresos según lo indicado en el proyecto original en el \"plan de viabilidad económica del proyecto - presupuesto general\" . En caso de que ya se haya aprobado una reformulación, deben indicarse las cantidades reformuladas."]
["(2) Gastos reales = Coste real total del proyecto subvencionado. Automáticamente se introducirán los subtotales de los gastos relacionados en la hoja Gastos-detalle."]
["(3) Ingresos reales = Total de ingresos obtenidos para la realización del proyecto subvencionado. Automáticamente se introducirán los subtotales de los ingresos relacionados en la hoja Ingresos-detalle"]
["(4) Desviación: En el caso de los gastos, la desviación es la diferencia entre gastos reales y la previsión inicial de gastos; y en el caso de ingresos, la diferencia entre los ingresos reales y la previsión inicial de ingresos."]
["(5) % financiación municipal inicial o después de reformulación = porcentaje que suponen la subvenciones municipal (A) respecto del total de ingresos del proyecto subvencionado."]
["(6) % financiación municipal después de justificación = porcentaje que supone la subvención municipal (A) respecto al total de ingresos del proyecto subvencionado. En caso de existir una desviación siempre debe motivarse."]
[]
[]
[]
[]
[]
[]
[]
[]
[]
[]
[]
[]
[]
[]
[]
[]
[]
[]
[]
[]
[]
[]
[]
[]
[]
[]
[]
[null,null,0]